[Event "Oceania Zonal Open 2023"]
[Site "Melbourne"]
[Date "2023.01.26"]
[Round "6.10"]
[White "Zafirakos, Jesse"]
[Black "Nemeth, John"]
[Result "1/2-1/2"]
[ECO "B36"]
[WhiteElo "1902"]
[BlackElo "2157"]
[Annotator "TA"]
[PlyCount "66"]
[EventDate "2023.01.09"]
[EventType "swiss"]
[EventCountry "AUS"]
[SourceTitle "playchess.com"]
[Source "ChessBase"]
[SourceQuality "1"]
[TimeControl "5400+30"]

{[%evp 30,66,-4,-4,22,17,21,22,22,21,18,18,22,22,32,14,25,0,27,0,16,0,0,0,0,0,0,0,0,0,0,0,0,0,0,0,0,0,0]} 1. e4 {[%emt 0:00:03]} c5 {[%emt 0:00:25]} 2. Nf3 {[%emt 0:00:03]} Nc6 {[%emt 0:00:10]} 3. d4 {[%emt 0:00:02]} cxd4 {[%emt 0:00:12]} 4. Nxd4 {[%emt 0:00:02]} g6 {[%emt 0:00:33]} 5. c4 {[%emt 0:00:02]} Nf6 {[%emt 0:00:11]} 6. Nc3 {[%emt 0:00:13]} d6 {[%emt 0:00:07]} 7. Be2 {[%emt 0:00:54]} Nxd4 {[%emt 0:00:15]} 8. Qxd4 {[%emt 0:00:06]} Bg7 {[%emt 0:00:06]} 9. Be3 {[%emt 0:00:04]} O-O {[%emt 0:00:07]} 10. Qd2 {[%emt 0:00:20]} Be6 {[%emt 0:00:05]} 11. O-O {[%emt 0:02:41]} Qa5 {[%emt 0:00:28]} 12. f3 {[%emt 0:00:55]} Rfc8 {[%emt 0:02:29]} 13. b3 {[%emt 0:01:36]} a6 {[%emt 0:08:36]} 14. Rac1 {[%emt 0:15:30]} b5 {[%emt 0:12:11]} 15. Nd5 {[%emt 0:01:11]} Qxd2 {[%emt 0:00:34]} 16. Bxd2 {[%emt 0:00:48]} Bxd5 {[%emt 0:01:11] B36: Sicilian: Maroczy Bind: Gurgenidze System.} 17. cxd5 {[%emt 0:00:48]} Nd7 {[%emt 0:01:03]} 18. Rxc8+ {[%emt 0:02:20]} Rxc8 {[%emt 0:00:13]} 19. Rc1 {[%emt 0:00:27]} Rxc1+ {[%emt 0:06:07]} 20. Bxc1 $11 {[%emt 0:00:03][%mdl 4096] Endgame KBB-KBN} Bd4+ {[%emt 0:02:40]} 21. Kf1 {[%emt 0:00:02]} Nc5 {[%emt 0:03:46]} 22. Ba3 {[%emt 0:02:37]} Nd7 {[%emt 0:05:32]} 23. Bc1 {[%emt 0:01:28]} Nc5 {[%emt 0:14:40]} 24. Ba3 {[%emt 0:00:34]} Kg7 {[%emt 0:00:15] The position is equal.} 25. Bxc5 {[%emt 0:04:25]} Bxc5 {[%emt 0:07:29] KB-KB} 26. a4 {[%emt 0:00:28]} bxa4 {[%emt 0:00:05]} 27. bxa4 {[%emt 0:00:07]} a5 {[%emt 0:00:04]} 28. f4 {[%emt 0:01:05] [#]} Kf6 $146 {[%emt 0:00:32]} ({Predecessor:} 28... Be3 29. g3 Kf6 30. Kg2 Bd4 31. Kf3 Bg1 32. Kg2 Bd4 33. Kf3 Bg1 34. h3 Bd4 35. Bb5 Bc5 36. Bc6 Bd4 37. Bb5 Bc5 38. Bc6 Bd4 39. Bb5 Bc5 40. Bc6 {½-½ Wisniowska,K (2145)-Fischer,J (1937) EU-ch U18 Girls 23rd 2013 (6)}) 29. g3 {[%emt 0:00:32]} g5 {[%emt 0:01:15]} 30. Kg2 {[%emt 0:00:31]} e6 {[%emt 0:01:21]} 31. h3 {[%emt 0:02:12]} exd5 {[%emt 0:00:34]} 32. exd5 {[%emt 0:00:29]} gxf4 {[%emt 0:01:05]} 33. gxf4 {[%emt 0:00:06]} Bb4 {[%emt 0:00:25] A balanced but interesting game.   Weighted Error Value: White=0.07 (flawless) /Black=0.05 (flawless)} 1/2-1/2

[Event "Oceania Zonal Open 2023"]
[Site "Melbourne"]
[Date "2023.01.26"]
[Round "6.11"]
[White "Kethro, Michael"]
[Black "Tang, Hao"]
[Result "1/2-1/2"]
[ECO "A59"]
[WhiteElo "2149"]
[BlackElo "1913"]
[Annotator "TA"]
[PlyCount "60"]
[EventDate "2023.01.09"]
[EventType "swiss"]
[EventCountry "AUS"]
[SourceTitle "playchess.com"]
[Source "ChessBase"]
[SourceQuality "1"]
[TimeControl "5400+30"]

{[%evp 21,60,51,73,75,71,68,75,84,84,50,128,125,113,115,111,13,20,14,27,0,0,0,0,0,0,-22,-22,-22,-22,-22,-22,-22,-22,-22,-22,-22,-6,-6,-6,-21,-14]} 1. d4 {[%emt 0:00:03]} Nf6 {[%emt 0:00:04]} 2. c4 {[%emt 0:00:28]} c5 {[%emt 0:00:05]} 3. d5 {[%emt 0:00:45]} b5 {[%emt 0:00:02]} 4. cxb5 {[%emt 0:00:12]} a6 {[%emt 0:00:06]} 5. bxa6 {[%emt 0:00:13]} Bxa6 {[%emt 0:00:06]} 6. Nc3 {[%emt 0:00:25]} g6 {[%emt 0:00:11]} 7. e4 {[%emt 0:00:49]} Bxf1 {[%emt 0:00:06]} 8. Kxf1 {[%emt 0:00:06]} d6 {[%emt 0:00:05]} 9. g3 {[%emt 0:00:31]} Bg7 {[%emt 0:00:06]} 10. Kg2 {[%emt 0:00:07]} O-O {[%emt 0:00:08]} 11. Nf3 {[%emt 0:00:06][%cal Bg1f3,Bf3d2,Bd2c4][%mdl 32]} Nbd7 {[%emt 0:00:08]} 12. a4 {[%emt 0:00:39] A59: Benko/Volga Gambit: White castles by hand.} Qb6 {[%emt 0:00:11]} 13. Qe2 {[%emt 0:06:51]} Rfb8 {[%emt 0:04:06]} 14. Nb5 {[%emt 0:03:27] White is better.} Ne8 {[%emt 0:01:35]} 15. Nd2 {[%emt 0:05:41]} Nc7 {[%emt 0:02:22]} (15... Qa6 $14 16. Ra3 Nc7) 16. Nc4 $16 {[%emt 0:02:05]} Qb7 {[%emt 0:01:42]} 17. Nxc7 {[%emt 0:01:26]} Qxc7 {[%emt 0:04:28] [#]} 18. Ra3 {[%emt 0:01:04]} (18. a5 $1 $16) 18... Nb6 $11 {[%emt 0:02:33]} 19. b3 {[%emt 0:07:28]} Nxc4 {[%emt 0:09:07] [#]} 20. bxc4 $146 {[%emt 0:31:31]} (20. Qxc4 $5 {[%cal Rc1d2]} Rb4 21. Qd3 $11) ({Predecessor:} 20. Qxc4 Rb4 21. Qc2 c4 22. Be3 Rab8 23. Rc1 Qd7 24. Rb1 h5 25. a5 h4 26. Bb6 {1-0 Klein,R (1884)-Schwab,W (1796) Schleswig Holstein-ch Seniors op 10th 2016 (6)}) 20... Rb4 {[%emt 0:00:44] The position is equal.} 21. Qc2 {[%emt 0:01:04]} Qa7 $1 {[%emt 0:02:43][%cal Rb4a4]} 22. a5 {[%emt 0:09:16]} Qa6 {[%emt 0:01:36]} 23. Ra4 {[%emt 0:00:45]} Rxa4 {[%emt 0:04:54]} 24. Qxa4 {[%emt 0:00:10] [#] Black must now prevent Bd2.} Qxa5 {[%emt 0:00:09]} 25. Qxa5 {[%emt 0:02:06]} Rxa5 {[%emt 0:00:07] KRB-KRB} 26. Bg5 {[%emt 0:01:21]} f6 {[%emt 0:02:44]} 27. Be3 {[%emt 0:00:37]} Ra4 {[%emt 0:00:19]} 28. Rc1 {[%emt 0:01:00]} f5 {[%emt 0:01:57]} 29. exf5 {[%emt 0:02:53]} gxf5 {[%emt 0:01:04]} 30. Rc2 {[%emt 0:00:52]} Kf7 {[%emt 0:00:47] Weighted Error Value: White=0.15 (very precise) /Black=0.07 (flawless)} 1/2-1/2

[Event "Oceania Zonal Open 2023"]
[Site "Melbourne"]
[Date "2023.01.26"]
[Round "6.11"]
[White "Camer, Angelito"]
[Black "Xie, Felix"]
[Result "1-0"]
[ECO "D37"]
[WhiteElo "1983"]
[BlackElo "2103"]
[Annotator "TA"]
[PlyCount "88"]
[EventDate "2023.01.09"]
[EventType "swiss"]
[EventCountry "AUS"]
[SourceTitle "playchess.com"]
[Source "ChessBase"]
[SourceQuality "1"]
[TimeControl "5400+30"]

{[%evp 13,88,11,-2,6,17,12,11,0,48,31,42,6,26,26,26,26,26,26,31,35,41,21,24,0,0,0,28,3,43,39,57,24,31,22,20,24,21,0,252,262,461,459,403,397,703,647,824,785,781,774,718,517,669,605,1413,1384,29967,29946,29976,29976,29977,29978,29978,29979,29979,29980,29982,29983,29982,29983,29985,29986,29986,29987,29987,29987,29988]} 1. d4 {[%emt 0:00:07]} d5 {[%emt 0:00:12]} 2. c4 {[%emt 0:00:10]} e6 {[%emt 0:00:04]} 3. Nf3 {[%emt 0:00:12]} Nf6 {[%emt 0:00:05]} 4. Nc3 {[%emt 0:00:09]} Be7 {[%emt 0:00:04]} 5. Bf4 {[%emt 0:00:37]} O-O {[%emt 0:00:11]} 6. e3 {[%emt 0:00:22]} b6 {[%emt 0:00:12]} 7. cxd5 {[%emt 0:02:34]} Nxd5 {[%emt 0:00:49]} 8. Nxd5 {[%emt 0:00:47] D37: Queen's Gambit Declined: 5 Bf4.} Qxd5 {[%emt 0:00:05]} 9. a3 {[%emt 0:09:42] Against Bb4+} c5 {[%emt 0:02:35]} 10. dxc5 {[%emt 0:01:44] The position is equal.} (10. Be2 {is more complex.} cxd4 11. Qxd4 Bb7 12. O-O) 10... Qxd1+ {[%emt 0:01:15]} (10... Qxc5 $11 11. Be2 Rd8) 11. Rxd1 $14 {[%emt 0:00:11] aiming for cxb6.} Bxc5 {[%emt 0:00:04] [#] Black is weak on the dark squares} 12. Bd6 $146 {[%emt 0:03:33]} ({Predecessor:} 12. Bd3 Bb7 13. Ng5 h6 14. Ne4 Be7 15. O-O Rd8 16. Bb1 Nd7 17. Bc7 Bd5 18. Bxd8 Rxd8 {1-0 Korobov,A (2688)-Carlsen,M (2863) FIDE Steinitz Memorial blitz 2020 (4)}) 12... Rd8 {[%emt 0:02:20]} 13. Bxc5 {[%emt 0:00:18][%cal Rd1d8] [#]} Rxd1+ {[%emt 0:00:04]} 14. Kxd1 {[%emt 0:00:09]} bxc5 {[%emt 0:00:02]} 15. Kc2 {[%emt 0:01:04]} Nd7 {[%emt 0:01:29]} 16. Bb5 {[%emt 0:02:20]} Rb8 {[%emt 0:03:16]} 17. Bxd7 {[%emt 0:03:18]} (17. Bc6 $5 {[%cal Rh1d1]} Rb6 18. Ba4 $11) 17... Bxd7 {[%emt 0:00:07][%mdl 4096] Endgame KRB-KRN} 18. b3 {[%emt 0:00:19]} Bc6 {[%emt 0:01:36]} 19. Kc3 {[%emt 0:03:43]} a5 {[%emt 0:03:24]} 20. Rb1 {[%emt 0:01:33]} Be4 {[%emt 0:08:34]} 21. Rb2 {[%emt 0:00:50]} Bd5 {[%emt 0:00:17]} 22. Nd2 {[%emt 0:01:33]} (22. Ne5 $5 {[%cal Rf2f3]}) 22... Bxg2 {[%emt 0:38:49]} 23. Kc4 {[%emt 0:03:26]} a4 {[%emt 0:02:30]} 24. Kxc5 {[%emt 0:01:29] b4 would be deadly.} axb3 {[%emt 0:00:41]} 25. Rxb3 {[%emt 0:00:17]} Rxb3 {[%emt 0:00:40][%mdl 8192] White stays focused until the end.} (25... Rc8+ $11 26. Kb4 Bd5) 26. Nxb3 $11 {[%emt 0:00:12] Black must now prevent Kd6. KB-KN} Kf8 $2 {[%emt 0:00:03]} (26... Bd5) 27. Kd6 $18 {[%emt 0:00:18]} Ke8 {[%emt 0:00:29]} 28. Nc5 {[%emt 0:00:22]} Bd5 $2 {[%emt 0:02:20]} (28... Kd8 29. a4 Bf3) 29. e4 {[%emt 0:00:22]} Bc4 {[%emt 0:00:27]} 30. a4 {[%emt 0:00:08][%cal Ba3a4,Ba4a5][%mdl 32]} Kd8 {[%emt 0:00:11]} 31. a5 {[%emt 0:00:02] Hoping for a6.} Kc8 {[%emt 0:01:00]} 32. a6 {[%emt 0:00:38] White threatens a7 and mate.} Kb8 {[%emt 0:00:28]} 33. Ke7 {[%emt 0:00:53][%mdl 64] [#] Deflection} f6 {[%emt 0:05:11]} 34. Nxe6 {[%emt 0:00:15]} Bxa6 {[%emt 0:00:42]} 35. Nxg7 {[%emt 0:00:23] White mates.} Bd3 {[%emt 0:00:03]} 36. Kxf6 {[%emt 0:00:20]} Bxe4 {[%emt 0:00:04]} 37. f4 {[%emt 0:00:23][%cal Bf2f4,Bf4f5][%mdl 32]} Kc7 {[%emt 0:00:12]} 38. Ke7 {[%emt 0:00:07]} Kc6 {[%emt 0:00:39]} 39. f5 {[%emt 0:00:10]} Kd5 {[%emt 0:00:35]} 40. f6 {[%emt 0:00:20]} Bg6 {[%emt 0:00:03]} 41. h4 {[%emt 0:00:13]} h5 {[%emt 0:01:37]} 42. f7 {[%emt 0:00:09]} Bxf7 {[%emt 0:00:05]} 43. Kxf7 {[%emt 0:00:09]} Ke5 {[%emt 0:00:01]} 44. Kg6 {[%emt 0:00:09]} Kd5 {[%emt 0:00:13] Weighted Error Value: White=0.06 (flawless) /Black=0.51} 1-0

[Event "Oceania Zonal Open 2023"]
[Site "Melbourne"]
[Date "2023.01.26"]
[Round "6.12"]
[White "Rujevic, Mirko"]
[Black "Zhang, Kendrick Botong"]
[Result "1-0"]
[ECO "B23"]
[WhiteElo "2141"]
[BlackElo "1889"]
[Annotator "TA"]
[PlyCount "53"]
[EventDate "2023.01.09"]
[EventType "swiss"]
[EventCountry "AUS"]
[SourceTitle "playchess.com"]
[Source "ChessBase"]
[SourceQuality "1"]
[TimeControl "5400+30"]

{[%evp 9,53,-25,-26,-37,0,0,30,29,41,16,61,23,45,59,90,112,185,196,193,188,190,188,180,189,191,193,684,685,652,474,459,287,572,566,561,275,1146,1470,1381,1322,1059,951,5689,5514,5461,1720]} 1. e4 {[%emt 0:05:22]} c5 {[%emt 0:00:13]} 2. Nc3 {[%emt 0:00:16]} Nc6 {[%emt 0:00:18]} 3. Bc4 {[%emt 0:00:33]} e6 {[%emt 0:03:49]} 4. f4 {[%emt 0:00:38]} Nge7 {[%emt 0:04:52]} 5. d3 {[%emt 0:09:42]} d5 {[%emt 0:04:09]} 6. Bb3 {[%emt 0:06:57] B23: Closed Sicilian: Lines without g3.} d4 {[%emt 0:13:59]} 7. Nce2 {[%emt 0:01:05]} g6 {[%emt 0:00:18]} 8. Nf3 {[%emt 0:00:48] [#] White has an edge.} Bg7 $146 {[%emt 0:00:15]} ({Predecessor:} 8... Na5 9. O-O Nxb3 10. axb3 Bg7 11. Bd2 b6 12. Qe1 Bb7 13. b4 f5 14. e5 h6 15. bxc5 bxc5 {0-1 Braun,D (1664)-Kues,M (1599) Oberpfalz-ch M2 2007 (2)}) 9. a3 {[%emt 0:01:05]} O-O {[%emt 0:01:21]} 10. O-O {[%emt 0:00:10]} b6 {[%emt 0:18:32]} 11. Qe1 {[%emt 0:02:31]} Bb7 {[%emt 0:00:10]} 12. Qh4 {[%emt 0:01:25][%cal Of4f5]} Nc8 {[%emt 0:02:52] [#]} (12... b5 $16) 13. Ng5 $1 $18 {[%emt 0:05:09][%csl Gg5][%cal Rh4h7]} h6 {[%emt 0:10:35] [#]} 14. f5 $1 {[%emt 0:00:11]} exf5 {[%emt 0:25:44]} (14... hxg5 $2 15. Bxg5 Qd6 16. fxg6 fxg6 17. Rxf8+ Bxf8 18. Qh3 $18) 15. exf5 {[%emt 0:00:41]} Ne5 {[%emt 0:03:13]} (15... hxg5 $2 16. Bxg5 Qd6 17. f6 $18) 16. fxg6 {[%emt 0:05:52][%mdl 64] Remove Defender} Nxg6 {[%emt 0:00:35]} 17. Qh5 {[%emt 0:00:34][%cal Rg5f7]} (17. Bxf7+ $2 {perishes.} Rxf7 18. Rxf7 hxg5 19. Qxg5 Qxg5 20. Rxg7+ Kxg7 $19) 17... Bd5 {[%emt 0:01:01] [#]} (17... hxg5 18. Qxg6 Bd5 19. Bxd5 (19. Qxg5 Qxg5 20. Bxg5 Bxb3 $16) 19... Qxd5 20. Qxg5 Qxg5 21. Bxg5 Nd6) 18. Nxf7 $1 {[%emt 0:00:40][%mdl 576] Remove Defender, X-Ray Attack} Bxf7 {[%emt 0:00:31]} 19. Rxf7 {[%emt 0:00:26][%mdl 64] Remove Defender. Black is weak on the light squares} Rxf7 {[%emt 0:00:24]} 20. Qxg6 {[%emt 0:00:16][%mdl 64] Pin} Nd6 {[%emt 0:05:18]} (20... Qf6 21. Qxf6 (21. Bxf7+ Qxf7 22. Qc6 Rb8 $18) 21... Bxf6) 21. Bd5 {[%emt 0:02:14][%mdl 64] Pin} (21. Bxf7+ Nxf7 22. Bd2 Qf6 $16) (21. Bxh6 c4 $18) 21... Rc8 {[%emt 0:00:40]} 22. Bxh6 {[%emt 0:00:17]} (22. Bxf7+ Nxf7 23. Qg4 Ne5 24. Qe6+ Kh7 $16) (22. Bf4 $142) 22... Qf8 $2 {[%emt 0:00:33]} (22... Qf6 23. Qxf6 (23. Bxf7+ Nxf7 24. Qxg7+ Qxg7 $18) 23... Bxf6) 23. Bxg7 {[%emt 0:00:32][%mdl 64] Deflection. White is clearly winning.} Qxg7 {[%emt 0:00:08]} 24. Qxd6 {[%emt 0:00:08]} Rcf8 {[%emt 0:00:28]} 25. Rf1 {[%emt 0:00:27]} Kh8 {[%emt 0:00:12]} 26. Bxf7 {[%emt 0:00:19]} Rxf7 {[%emt 0:00:08]} 27. Qd8+ {[%emt 0:00:58] Black got outplayed after the opening. Ingenious play by Rujevic!   Weighted Error Value: White=0.57/Black=0.74} 1-0

[Event "Oceania Zonal Open 2023"]
[Site "Melbourne"]
[Date "2023.01.26"]
[Round "6.12"]
[White "Dowden, R.A. Tony"]
[Black "O'Carroll, Jeremy"]
[Result "1/2-1/2"]
[ECO "A36"]
[WhiteElo "1981"]
[BlackElo "2068"]
[Annotator "TA"]
[PlyCount "63"]
[EventDate "2023.01.09"]
[EventType "swiss"]
[EventCountry "AUS"]
[SourceTitle "playchess.com"]
[Source "ChessBase"]
[SourceQuality "1"]
[TimeControl "5400+30"]

{[%evp 10,63,-13,-19,-3,-3,0,-24,-23,-26,-33,-39,-21,-66,-46,-46,-48,-46,-51,-47,-47,-47,-38,-50,-39,-48,-47,-61,-31,-37,-24,-32,-25,-42,0,-43,-41,-83,-76,-87,-76,-84,-84,-133,-125,-136,-116,-120,-112,-121,0,-161,-162,-308,-300,-252]} 1. c4 {[%emt 0:00:03]} g6 {[%emt 0:00:22]} 2. Nc3 {[%emt 0:00:41]} Bg7 {[%emt 0:00:07]} 3. g3 {[%emt 0:00:24]} c5 {[%emt 0:00:36]} 4. Bg2 {[%emt 0:00:22]} Nc6 {[%emt 0:00:17]} 5. e4 {[%emt 0:02:58]} a6 {[%emt 0:01:11]} 6. d3 {[%emt 0:07:24]} b5 {[%emt 0:00:53][%cal Bb7b5,Bb5b4][%mdl 32] A36: Symmetrical English vs ...g6: 4 Bg2 Bg7.} 7. Nge2 {[%emt 0:06:57]} Rb8 {[%emt 0:03:17]} 8. Rb1 {[%emt 0:05:36]} b4 {[%emt 0:02:01] [#] Black has an edge.} 9. Na4 $146 {[%emt 0:04:05]} ({Predecessor:} 9. Nd5 e6 10. Ne3 Nge7 11. O-O Qa5 12. Qb3 d6 13. Bd2 Bd7 14. a3 Qc7 15. Qd1 {0-1 Larand,M-Garrido,D (2255) Bordeaux op 1997 (3)}) 9... d6 {[%emt 0:01:46]} 10. b3 {[%emt 0:08:36]} e5 {[%emt 0:01:40]} 11. h4 {[%emt 0:02:05]} Bg4 {[%emt 0:11:51]} 12. f3 {[%emt 0:00:19]} Be6 {[%emt 0:00:27]} 13. Be3 {[%emt 0:04:31]} h5 {[%emt 0:11:08]} 14. Bh3 {[%emt 0:04:33]} Bxh3 {[%emt 0:02:22]} 15. Rxh3 {[%emt 0:00:01]} Qd7 {[%emt 0:00:17]} 16. Rh2 {[%emt 0:00:39]} Bh6 {[%emt 0:02:14]} 17. Bxh6 {[%emt 0:01:08]} Nxh6 {[%emt 0:00:27]} 18. Qd2 {[%emt 0:02:56]} Kd8 {[%emt 0:01:22]} 19. Kd1 {[%emt 0:04:25]} Kc7 {[%emt 0:01:16]} 20. Kc2 {[%emt 0:01:22]} Ng8 {[%emt 0:03:00]} 21. Nb2 {[%emt 0:02:49]} Nge7 {[%emt 0:01:27]} 22. Nd1 {[%emt 0:00:16]} a5 {[%emt 0:01:57][%cal Ba6a5,Ba5a4][%mdl 32]} 23. Ne3 {[%emt 0:00:12] [#]} a4 $1 {[%emt 0:02:15]} 24. Nd5+ {[%emt 0:03:49]} (24. Kd1 Ra8) 24... Nxd5 {[%emt 0:00:53]} 25. cxd5 {[%emt 0:01:09]} Na7 {[%emt 0:01:51]} 26. Rf2 {[%emt 0:03:07]} (26. Kd1 $142) 26... Nb5 {[%emt 0:01:37] And now ...Na3+ would win.} 27. Kd1 {[%emt 0:01:06]} Ra8 {[%emt 0:09:05]} 28. f4 {[%emt 0:00:23]} axb3 {[%emt 0:14:15]} 29. axb3 {[%emt 0:00:14] [#]} Qg4 {[%emt 0:09:18]} (29... f6 $1 $17 {...Qh3 is the strong threat.} 30. Ke1 Kb6) 30. Ke1 $2 {[%emt 0:03:33] [#]} (30. Rc1 $1 $11 {and White stays safe.} f6 31. fxe5 fxe5 32. Qxb4) 30... Nd4 $1 $19 {[%emt 0:03:39] Hoping for ...Nf3+.} 31. Nxd4 {[%emt 0:00:36]} (31. fxe5 $142 Nf3+ 32. Rxf3 Qxf3 33. Rc1) 31... exd4 {[%emt 0:00:01]} 32. Rg2 {[%emt 0:03:04][%mdl 32768] Weighted Error Value: White=0.26 (precise) /Black=0.12 (very precise) . An unexpected result.} 1/2-1/2